[Event "Late-Titled-Tuesday-Blitz-February-13-2024"]
[Site "Chess.com"]
[Date "2024.02.13"]
[Round "6"]
[White "ACollins05"]
[Black "TheCavemanChess"]
[Result "0-1"]
[WhiteElo "2456"]
[BlackElo "2676"]
[TimeControl "180+1"]
[EndTime "15:07:51 PST"]
[Termination "TheCavemanChess won on time"]

1. d4 {[%clk 0:02:53.4]} 1... Nf6 {[%clk 0:02:56.5]} 2. c4 {[%clk 0:02:52.9]}
2... e6 {[%clk 0:02:56.5]} 3. Nf3 {[%clk 0:02:52.7]} 3... d5 {[%clk 0:02:57.4]}
4. g3 {[%clk 0:02:52.4]} 4... Bb4+ {[%clk 0:02:53.1]} 5. Nbd2 {[%clk 0:02:50.9]}
5... Be7 {[%clk 0:02:53.8]} 6. Bg2 {[%clk 0:02:50]} 6... O-O {[%clk 0:02:54.2]}
7. O-O {[%clk 0:02:49.5]} 7... c6 {[%clk 0:02:54.4]} 8. Qc2 {[%clk 0:02:49.6]}
8... Nbd7 {[%clk 0:02:55.3]} 9. e4 {[%clk 0:02:49.6]} 9... dxe4 {[%clk
0:02:54.7]} 10. Nxe4 {[%clk 0:02:50.5]} 10... Nxe4 {[%clk 0:02:55.4]} 11. Qxe4
{[%clk 0:02:50.7]} 11... c5 {[%clk 0:02:52.2]} 12. Rd1 {[%clk 0:02:46.7]} 12...
cxd4 {[%clk 0:02:47.2]} 13. Nxd4 {[%clk 0:02:45.2]} 13... Nc5 {[%clk 0:02:47.1]}
14. Qe2 {[%clk 0:02:44.7]} 14... Qb6 {[%clk 0:02:37.4]} 15. Be3 {[%clk
0:02:35.7]} 15... Bd7 {[%clk 0:02:33.4]} 16. Nb5 {[%clk 0:02:26.8]} 16... Bxb5
{[%clk 0:02:27.3]} 17. cxb5 {[%clk 0:02:26.3]} 17... Qa5 {[%clk 0:02:18.3]} 18.
Bd2 {[%clk 0:02:13.5]} 18... Qa4 {[%clk 0:02:08.6]} 19. b4 {[%clk 0:02:00.3]}
19... Nd7 {[%clk 0:02:02.8]} 20. Bxb7 {[%clk 0:01:58.2]} 20... Rad8 {[%clk
0:01:47.9]} 21. Bc6 {[%clk 0:01:54.4]} 21... Bf6 {[%clk 0:01:46.8]} 22. Rac1
{[%clk 0:01:47.2]} 22... Qxa2 {[%clk 0:01:40.8]} 23. Qe3 {[%clk 0:01:33]} 23...
Ne5 {[%clk 0:01:31.7]} 24. Bc3 {[%clk 0:01:03.7]} 24... Ng4 {[%clk 0:01:26.2]}
25. Qf3 {[%clk 0:00:56.2]} 25... Bxc3 {[%clk 0:01:15.7]} 26. Qxg4 {[%clk
0:00:55.1]} 26... Bf6 {[%clk 0:01:02.8]} 27. h4 {[%clk 0:00:51.9]} 27... Rd2
{[%clk 0:00:55.4]} 28. Rxd2 {[%clk 0:00:50]} 28... Qxd2 {[%clk 0:00:56.3]} 29.
Rd1 {[%clk 0:00:50.4]} 29... Qb2 {[%clk 0:00:54.4]} 30. Qe4 {[%clk 0:00:43.3]}
30... Rd8 {[%clk 0:00:37]} 31. Rxd8+ {[%clk 0:00:37.3]} 31... Bxd8 {[%clk
0:00:37.9]} 32. Qd3 {[%clk 0:00:37.5]} 32... Bb6 {[%clk 0:00:28]} 33. Qf3 {[%clk
0:00:29.2]} 33... f5 {[%clk 0:00:20.4]} 34. Bd7 {[%clk 0:00:17.4]} 34... Kf7
{[%clk 0:00:20.7]} 35. Bc8 {[%clk 0:00:16.8]} 35... Kf6 {[%clk 0:00:20.5]} 36.
g4 {[%clk 0:00:15.9]} 36... g6 {[%clk 0:00:15.7]} 37. g5+ {[%clk 0:00:16.3]}
37... Ke5 {[%clk 0:00:14.9]} 38. Qg3+ {[%clk 0:00:13.9]} 38... Kd5 {[%clk
0:00:11.8]} 39. Qd3+ {[%clk 0:00:12.9]} 39... Bd4 {[%clk 0:00:09.2]} 40. Qf3+
{[%clk 0:00:11.7]} 40... Kd6 {[%clk 0:00:09.7]} 41. Qc6+ {[%clk 0:00:11.4]}
41... Ke5 {[%clk 0:00:10.3]} 42. Qc7+ {[%clk 0:00:06.6]} 42... Ke4 {[%clk
0:00:08.2]} 43. Bb7+ {[%clk 0:00:06.2]} 43... Kd3 {[%clk 0:00:08.7]} 44. Qg3+
{[%clk 0:00:06.1]} 44... Kc4 {[%clk 0:00:08.8]} 45. Bc8 {[%clk 0:00:04.5]} 45...
e5 {[%clk 0:00:08.3]} 46. Be6+ {[%clk 0:00:04.6]} 46... Kxb4 {[%clk 0:00:08.7]}
47. Bg8 {[%clk 0:00:03.8]} 47... e4 {[%clk 0:00:08.9]} 48. Bxh7 {[%clk
0:00:02.6]} 48... Be5 {[%clk 0:00:08.3]} 49. Qg2 {[%clk 0:00:02.6]} 49... Qc1+
{[%clk 0:00:08]} 50. Qf1 {[%clk 0:00:03]} 50... Qf4 {[%clk 0:00:08.6]} 51. Qg2
{[%clk 0:00:02.5]} 51... e3 {[%clk 0:00:08.5]} 52. fxe3 {[%clk 0:00:02.1]} 52...
Qxe3+ {[%clk 0:00:09.4]} 53. Kh1 {[%clk 0:00:02.5]} 53... Bd4 {[%clk 0:00:09.2]}
54. Bxg6 {[%clk 0:00:01.6]} 54... Qe1+ {[%clk 0:00:09.7]} 55. Kh2 {[%clk
0:00:02]} 55... Qxh4+ {[%clk 0:00:10.2]} 56. Qh3 {[%clk 0:00:02.5]} 56... Be5+
{[%clk 0:00:10.8]} 57. Kg2 {[%clk 0:00:02.4]} 57... Qxg5+ {[%clk 0:00:11.6]} 58.
Kf3 {[%clk 0:00:02.1]} 58... Qxg6 {[%clk 0:00:11.9]} 59. Qh4+ {[%clk 0:00:02.4]}
59... Kxb5 {[%clk 0:00:12.5]} 60. Qh2 {[%clk 0:00:01.2]} 60... Qg4+ {[%clk
0:00:12.6]} 0-1

[Event "Late-Titled-Tuesday-Blitz-February-13-2024"]
[Site "Chess.com"]
[Date "2024.02.13"]
[Round "6"]
[White "JoakimVonAnd"]
[Black "verrbaa"]
[Result "1-0"]
[WhiteElo "2691"]
[BlackElo "2501"]
[TimeControl "180+1"]
[EndTime "15:07:52 PST"]
[Termination "JoakimVonAnd won on time"]

1. c4 {[%clk 0:03:00.9]} 1... e5 {[%clk 0:02:56.1]} 2. Nf3 {[%clk 0:02:58]} 2...
Nc6 {[%clk 0:02:55.6]} 3. d4 {[%clk 0:02:53.6]} 3... exd4 {[%clk 0:02:55.5]} 4.
Nxd4 {[%clk 0:02:53.4]} 4... Nf6 {[%clk 0:02:47.2]} 5. Nc3 {[%clk 0:02:52.2]}
5... Bb4 {[%clk 0:02:46.8]} 6. g3 {[%clk 0:02:50.8]} 6... O-O {[%clk 0:02:33.8]}
7. Bg2 {[%clk 0:02:49.2]} 7... Bxc3+ {[%clk 0:02:30]} 8. bxc3 {[%clk 0:02:49]}
8... Re8 {[%clk 0:02:27]} 9. O-O {[%clk 0:02:48.9]} 9... Ne5 {[%clk 0:02:08.1]}
10. c5 {[%clk 0:02:45.4]} 10... d6 {[%clk 0:02:07.6]} 11. cxd6 {[%clk
0:02:39.4]} 11... Qxd6 {[%clk 0:02:07.4]} 12. e4 {[%clk 0:02:34.5]} 12... Ng6
{[%clk 0:01:55.5]} 13. Re1 {[%clk 0:02:30.8]} 13... c6 {[%clk 0:01:52.1]} 14. f4
{[%clk 0:02:23.2]} 14... Qc7 {[%clk 0:01:33.7]} 15. e5 {[%clk 0:02:14.3]} 15...
Nd5 {[%clk 0:01:32.7]} 16. Qb3 {[%clk 0:02:06.3]} 16... Rd8 {[%clk 0:01:25.6]}
17. Ba3 {[%clk 0:02:04.5]} 17... Nge7 {[%clk 0:01:14.3]} 18. Bd6 {[%clk
0:02:01.2]} 18... Qb6 {[%clk 0:01:14.5]} 19. Qxb6 {[%clk 0:01:54.6]} 19... axb6
{[%clk 0:01:13.9]} 20. c4 {[%clk 0:01:55.2]} 20... Nc3 {[%clk 0:00:58.6]} 21.
Rec1 {[%clk 0:01:42.8]} 21... Nf5 {[%clk 0:00:40.3]} 22. Nxf5 {[%clk 0:01:34.7]}
22... Ne2+ {[%clk 0:00:40.5]} 23. Kf2 {[%clk 0:01:35]} 23... Nxc1 {[%clk
0:00:40.9]} 24. Ne7+ {[%clk 0:01:35.3]} 24... Kh8 {[%clk 0:00:41.6]} 25. Rxc1
{[%clk 0:01:34.2]} 25... Rxa2+ {[%clk 0:00:41.4]} 26. Kg1 {[%clk 0:01:31.1]}
26... Bg4 {[%clk 0:00:38.2]} 27. h3 {[%clk 0:01:25.5]} 27... Be2 {[%clk
0:00:37.7]} 28. Be4 {[%clk 0:01:19.1]} 28... h5 {[%clk 0:00:35.2]} 29. Nf5
{[%clk 0:01:01.4]} 29... Rda8 {[%clk 0:00:31.9]} 30. Nd4 {[%clk 0:01:00.7]}
30... Ra1 {[%clk 0:00:28.7]} 31. Nxe2 {[%clk 0:00:43.9]} 31... Rxc1+ {[%clk
0:00:27.8]} 32. Nxc1 {[%clk 0:00:44.8]} 32... Ra1 {[%clk 0:00:27.8]} 33. Kf2
{[%clk 0:00:44.9]} 33... Rxc1 {[%clk 0:00:27.5]} 34. Bd3 {[%clk 0:00:45.3]}
34... g6 {[%clk 0:00:19.9]} 35. Bc7 {[%clk 0:00:45]} 35... Rc3 {[%clk 0:00:17]}
36. Ke2 {[%clk 0:00:43.1]} 36... Rb3 {[%clk 0:00:15.7]} 37. Kd2 {[%clk
0:00:41.5]} 37... Kg8 {[%clk 0:00:14.3]} 38. Kc2 {[%clk 0:00:41.6]} 38... Rb4
{[%clk 0:00:12]} 39. Kc3 {[%clk 0:00:42.1]} 39... c5 {[%clk 0:00:11.9]} 40. Be4
{[%clk 0:00:40.1]} 40... Kf8 {[%clk 0:00:07.5]} 41. Bxb7 {[%clk 0:00:40.1]}
41... Rb1 {[%clk 0:00:07.7]} 42. Bd5 {[%clk 0:00:38.6]} 42... Rg1 {[%clk
0:00:07.1]} 43. g4 {[%clk 0:00:32]} 43... hxg4 {[%clk 0:00:06.8]} 44. hxg4
{[%clk 0:00:32.9]} 44... Rxg4 {[%clk 0:00:06.9]} 45. e6 {[%clk 0:00:31.4]} 45...
fxe6 {[%clk 0:00:06.5]} 46. Bxe6 {[%clk 0:00:31.6]} 46... Rg3+ {[%clk
0:00:06.5]} 47. Kd2 {[%clk 0:00:31.7]} 47... Rf3 {[%clk 0:00:06]} 48. Ke2 {[%clk
0:00:29.5]} 48... Rb3 {[%clk 0:00:05.7]} 49. Bd5 {[%clk 0:00:25.5]} 49... Ke7
{[%clk 0:00:05.6]} 50. Be5 {[%clk 0:00:24.5]} 50... Rb1 {[%clk 0:00:03.1]} 51.
Kf3 {[%clk 0:00:24.8]} 51... Rc1 {[%clk 0:00:02.6]} 52. Kg4 {[%clk 0:00:24.9]}
52... Rg1+ {[%clk 0:00:01.4]} 53. Kh4 {[%clk 0:00:23.9]} 53... Rf1 {[%clk
0:00:01.7]} 54. Kg5 {[%clk 0:00:23.8]} 54... Rg1+ {[%clk 0:00:02]} 55. Kh6
{[%clk 0:00:24.3]} 55... Kd7 {[%clk 0:00:02.2]} 56. Bf7 {[%clk 0:00:22.8]} 56...
Rc1 {[%clk 0:00:02.1]} 57. Kxg6 {[%clk 0:00:22.1]} 57... Rd1 {[%clk 0:00:01.4]}
58. Bd5 {[%clk 0:00:21.3]} 58... b5 {[%clk 0:00:01.1]} 59. f5 {[%clk 0:00:19.1]}
59... b4 {[%clk 0:00:01.4]} 60. f6 {[%clk 0:00:19.3]} 60... b3 {[%clk
0:00:01.5]} 61. f7 {[%clk 0:00:19.7]} 61... Rf1 {[%clk 0:00:01.7]} 62. Kg7
{[%clk 0:00:19.4]} 1-0

[Event "Late-Titled-Tuesday-Blitz-February-13-2024"]
[Site "Chess.com"]
[Date "2024.02.13"]
[Round "6"]
[White "protectiago"]
[Black "fmcabralis"]
[Result "0-1"]
[WhiteElo "2098"]
[BlackElo "2236"]
[TimeControl "180+1"]
[EndTime "15:07:54 PST"]
[Termination "fmcabralis won by checkmate"]

1. d4 {[%clk 0:02:55.6]} 1... d5 {[%clk 0:01:54.8]} 2. c4 {[%clk 0:02:53.9]}
2... e6 {[%clk 0:01:54.5]} 3. g3 {[%clk 0:02:53.1]} 3... Nf6 {[%clk 0:01:53.8]}
4. Nf3 {[%clk 0:02:52.8]} 4... Be7 {[%clk 0:01:53.9]} 5. Bg2 {[%clk 0:02:52.2]}
5... O-O {[%clk 0:01:54.5]} 6. O-O {[%clk 0:02:51.6]} 6... dxc4 {[%clk
0:01:55.2]} 7. Qc2 {[%clk 0:02:49.8]} 7... b5 {[%clk 0:01:50.1]} 8. a4 {[%clk
0:02:46.6]} 8... b4 {[%clk 0:01:49.2]} 9. Nbd2 {[%clk 0:02:46.7]} 9... Nd5
{[%clk 0:01:38.1]} 10. Nxc4 {[%clk 0:02:28.6]} 10... a5 {[%clk 0:01:36.1]} 11.
e4 {[%clk 0:02:25]} 11... Nb6 {[%clk 0:01:27.1]} 12. Bf4 {[%clk 0:02:22.8]}
12... Ba6 {[%clk 0:01:21.2]} 13. b3 {[%clk 0:02:21.7]} 13... N8d7 {[%clk
0:01:10.1]} 14. Rfc1 {[%clk 0:02:19.5]} 14... c5 {[%clk 0:01:00.2]} 15. Nxb6
{[%clk 0:02:09.9]} 15... Qxb6 {[%clk 0:00:57.6]} 16. dxc5 {[%clk 0:01:40.5]}
16... Bxc5 {[%clk 0:00:51.1]} 17. e5 {[%clk 0:01:33.4]} 17... Rac8 {[%clk
0:00:50.1]} 18. Ng5 {[%clk 0:01:31.8]} 18... g6 {[%clk 0:00:46]} 19. Ne4 {[%clk
0:01:24.3]} 19... Bd4 {[%clk 0:00:46.3]} 20. Qd2 {[%clk 0:00:53.7]} 20... Bxa1
{[%clk 0:00:45.1]} 21. Rxa1 {[%clk 0:00:53.3]} 21... Rfd8 {[%clk 0:00:32.3]} 22.
Bg5 {[%clk 0:00:48.6]} 22... Nxe5 {[%clk 0:00:09.3]} 23. Bxd8 {[%clk 0:00:48.2]}
23... Rxd8 {[%clk 0:00:09.3]} 24. Qh6 {[%clk 0:00:48.2]} 24... Ng4 {[%clk
0:00:04.6]} 25. Qh4 {[%clk 0:00:42.8]} 25... f5 {[%clk 0:00:03.1]} 26. h3 {[%clk
0:00:33.3]} 26... fxe4 {[%clk 0:00:02.2]} 27. hxg4 {[%clk 0:00:31.6]} 27... Qd4
{[%clk 0:00:02.4]} 28. Re1 {[%clk 0:00:22.7]} 28... Bd3 {[%clk 0:00:02.4]} 29.
Qe7 {[%clk 0:00:18.4]} 29... Rf8 {[%clk 0:00:02.4]} 30. Qxe6+ {[%clk 0:00:18.1]}
30... Rf7 {[%clk 0:00:03]} 31. Qe8+ {[%clk 0:00:10.1]} 31... Kg7 {[%clk
0:00:02.9]} 32. Kh2 {[%clk 0:00:07.8]} 32... Qxf2 {[%clk 0:00:02.9]} 33. Rg1
{[%clk 0:00:06.6]} 33... Qe3 {[%clk 0:00:03]} 34. Qe5+ {[%clk 0:00:06.4]} 34...
Kg8 {[%clk 0:00:02.9]} 35. Qe8+ {[%clk 0:00:06]} 35... Kg7 {[%clk 0:00:03]} 36.
Qe5+ {[%clk 0:00:05.7]} 36... Kh6 {[%clk 0:00:03]} 37. Rd1 {[%clk 0:00:05.2]}
37... Be2 {[%clk 0:00:03]} 38. g5+ {[%clk 0:00:05.2]} 38... Qxg5 {[%clk
0:00:02.6]} 39. Qxg5+ {[%clk 0:00:05.4]} 39... Kxg5 {[%clk 0:00:03.5]} 40. Rd5+
{[%clk 0:00:05.3]} 40... Kg4 {[%clk 0:00:04.1]} 41. Bxe4 {[%clk 0:00:04.8]}
41... Rf2+ {[%clk 0:00:03.1]} 42. Kg1 {[%clk 0:00:04.9]} 42... Rf6 {[%clk
0:00:03.2]} 43. Bg2 {[%clk 0:00:04.2]} 43... Kxg3 {[%clk 0:00:03.1]} 44. Re5
{[%clk 0:00:03.7]} 44... Bg4 {[%clk 0:00:02.8]} 45. Re3+ {[%clk 0:00:03.9]}
45... Kf4 {[%clk 0:00:03]} 46. Re4+ {[%clk 0:00:03.6]} 46... Kf5 {[%clk
0:00:03.1]} 47. Rc4 {[%clk 0:00:03.5]} 47... Rd6 {[%clk 0:00:03.4]} 48. Rc5+
{[%clk 0:00:03.2]} 48... Kf4 {[%clk 0:00:03.8]} 49. Rc4+ {[%clk 0:00:03.2]}
49... Kg5 {[%clk 0:00:04.2]} 50. Rc5+ {[%clk 0:00:03.4]} 50... Kf6 {[%clk
0:00:04]} 51. Rxa5 {[%clk 0:00:03.4]} 51... Rd1+ {[%clk 0:00:04]} 52. Kf2 {[%clk
0:00:03.1]} 52... Rd2+ {[%clk 0:00:04.5]} 53. Kg3 {[%clk 0:00:03.2]} 53... Bf5
{[%clk 0:00:05.2]} 54. Bd5 {[%clk 0:00:02.2]} 54... Rd3+ {[%clk 0:00:05]} 55.
Kf4 {[%clk 0:00:01.7]} 55... g5# {[%clk 0:00:05]} 0-1

[Event "Late-Titled-Tuesday-Blitz-February-13-2024"]
[Site "Chess.com"]
[Date "2024.02.13"]
[Round "6"]
[White "IMRosen"]
[Black "Jarrahi2452"]
[Result "0-1"]
[WhiteElo "2628"]
[BlackElo "2822"]
[TimeControl "180+1"]
[EndTime "15:07:55 PST"]
[Termination "Jarrahi2452 won by resignation"]

1. d4 {[%clk 0:03:00.9]} 1... d5 {[%clk 0:02:59.8]} 2. Bf4 {[%clk 0:03:00.3]}
2... c5 {[%clk 0:02:59]} 3. Nc3 {[%clk 0:03:00.2]} 3... Nf6 {[%clk 0:02:54.1]}
4. e4 {[%clk 0:02:59.5]} 4... dxe4 {[%clk 0:02:43.6]} 5. dxc5 {[%clk 0:02:54.7]}
5... Bd7 {[%clk 0:02:39.7]} 6. Nb5 {[%clk 0:02:40.9]} 6... Na6 {[%clk
0:02:26.9]} 7. c3 {[%clk 0:02:34.6]} 7... g6 {[%clk 0:02:25.1]} 8. b4 {[%clk
0:02:27.4]} 8... Bg7 {[%clk 0:02:24.5]} 9. Bc4 {[%clk 0:02:28]} 9... O-O {[%clk
0:02:23.1]} 10. Ne2 {[%clk 0:02:28.7]} 10... Bxb5 {[%clk 0:02:19.5]} 11. Bxb5
{[%clk 0:02:22.7]} 11... Nb8 {[%clk 0:02:08.1]} 12. O-O {[%clk 0:02:18.2]} 12...
Nc6 {[%clk 0:01:58.3]} 13. Qb3 {[%clk 0:02:12.5]} 13... Qc8 {[%clk 0:01:51.1]}
14. h3 {[%clk 0:02:07.2]} 14... h6 {[%clk 0:01:48.1]} 15. Rfe1 {[%clk
0:02:04.7]} 15... g5 {[%clk 0:01:46.8]} 16. Bh2 {[%clk 0:02:00.5]} 16... Rd8
{[%clk 0:01:41.8]} 17. Bc4 {[%clk 0:01:59.1]} 17... e6 {[%clk 0:01:40.6]} 18.
Rad1 {[%clk 0:01:55.2]} 18... Rxd1 {[%clk 0:01:32.8]} 19. Rxd1 {[%clk
0:01:56.1]} 19... Qe8 {[%clk 0:01:30.1]} 20. Bd6 {[%clk 0:01:49.2]} 20... Ne7
{[%clk 0:01:20]} 21. Nd4 {[%clk 0:01:02.5]} 21... Ned5 {[%clk 0:01:15.2]} 22.
Be2 {[%clk 0:00:40.2]} 22... e3 {[%clk 0:01:13.5]} 23. fxe3 {[%clk 0:00:29.6]}
23... Nxe3 {[%clk 0:01:13]} 24. Re1 {[%clk 0:00:30.1]} 24... Nfd5 {[%clk
0:01:09.8]} 25. Bf3 {[%clk 0:00:28.6]} 25... Qd7 {[%clk 0:00:53.1]} 26. a4
{[%clk 0:00:24.8]} 26... Re8 {[%clk 0:00:45.4]} 27. Ne2 {[%clk 0:00:24.6]} 27...
f5 {[%clk 0:00:42.8]} 28. c4 {[%clk 0:00:23.7]} 28... Nxb4 {[%clk 0:00:35.9]}
29. Qxb4 {[%clk 0:00:10.8]} 29... Nc2 {[%clk 0:00:35.9]} 30. Qd2 {[%clk
0:00:11.2]} 30... Nxe1 {[%clk 0:00:35.1]} 31. Qxe1 {[%clk 0:00:11.7]} 31... Qxa4
{[%clk 0:00:35.5]} 32. Bxb7 {[%clk 0:00:09.3]} 32... Qxc4 {[%clk 0:00:34.6]} 33.
Kh1 {[%clk 0:00:05.5]} 33... e5 {[%clk 0:00:32.7]} 34. Ng3 {[%clk 0:00:04.5]}
34... Qd3 {[%clk 0:00:30.5]} 35. Nh5 {[%clk 0:00:04.4]} 35... e4 {[%clk
0:00:29.3]} 36. Nxg7 {[%clk 0:00:04.3]} 36... Kxg7 {[%clk 0:00:30.2]} 37. c6
{[%clk 0:00:04.9]} 37... Qxd6 {[%clk 0:00:29]} 38. Qc3+ {[%clk 0:00:04.4]} 38...
Qf6 {[%clk 0:00:27.6]} 39. Qxf6+ {[%clk 0:00:03.8]} 39... Kxf6 {[%clk
0:00:27.4]} 40. c7 {[%clk 0:00:04.7]} 40... f4 {[%clk 0:00:25.1]} 41. c8=Q
{[%clk 0:00:04.3]} 41... Rxc8 {[%clk 0:00:25.5]} 42. Bxc8 {[%clk 0:00:05.2]}
42... a5 {[%clk 0:00:26.4]} 43. Bd7 {[%clk 0:00:05.2]} 43... Ke5 {[%clk
0:00:24.2]} 44. Kg1 {[%clk 0:00:05]} 44... Kd4 {[%clk 0:00:24.3]} 45. Kf2 {[%clk
0:00:04.9]} 45... Kc3 {[%clk 0:00:22.2]} 46. Bc6 {[%clk 0:00:02.4]} 46... e3+
{[%clk 0:00:21.4]} 47. Ke2 {[%clk 0:00:02]} 47... Kb3 {[%clk 0:00:21.9]} 48. g3
{[%clk 0:00:01.9]} 48... a4 {[%clk 0:00:20.7]} 49. gxf4 {[%clk 0:00:02.1]} 49...
gxf4 {[%clk 0:00:20.7]} 50. Bd5+ {[%clk 0:00:02.8]} 50... Kb2 {[%clk 0:00:20]}
51. Kf3 {[%clk 0:00:02.2]} 51... a3 {[%clk 0:00:20.4]} 52. Bc4 {[%clk 0:00:02]}
52... a2 {[%clk 0:00:20.7]} 53. Kxf4 {[%clk 0:00:02.7]} 53... a1=Q {[%clk
0:00:20.5]} 54. Kxe3 {[%clk 0:00:03.4]} 54... Qc1+ {[%clk 0:00:20.9]} 55. Kd4
{[%clk 0:00:03.1]} 55... Qc3+ {[%clk 0:00:21.5]} 56. Kd5 {[%clk 0:00:03.2]}
56... Qxh3 {[%clk 0:00:22.4]} 57. Kd6 {[%clk 0:00:02.8]} 57... Qc3 {[%clk
0:00:22.2]} 58. Bf7 {[%clk 0:00:02.5]} 58... Qf6+ {[%clk 0:00:22.2]} 59. Be6
{[%clk 0:00:02]} 59... h5 {[%clk 0:00:22.5]} 60. Kd7 {[%clk 0:00:01.2]} 60...
Qxe6+ {[%clk 0:00:22.9]} 61. Kxe6 {[%clk 0:00:01.1]} 61... h4 {[%clk 0:00:23.8]}
62. Kf5 {[%clk 0:00:01.6]} 62... h3 {[%clk 0:00:24.7]} 63. Kg4 {[%clk
0:00:02.3]} 63... h2 {[%clk 0:00:25.6]} 64. Kg3 {[%clk 0:00:03.2]} 64... h1=Q
{[%clk 0:00:26]} 0-1

[Event "Late-Titled-Tuesday-Blitz-February-13-2024"]
[Site "Chess.com"]
[Date "2024.02.13"]
[Round "6"]
[White "SchmakAttack"]
[Black "Fandorine"]
[Result "1-0"]
[WhiteElo "2807"]
[BlackElo "2942"]
[TimeControl "180+1"]
[EndTime "15:08:00 PST"]
[Termination "SchmakAttack won by resignation"]

1. e4 {[%clk 0:03:00.9]} 1... e5 {[%clk 0:02:59.2]} 2. Nf3 {[%clk 0:02:58.6]}
2... Nc6 {[%clk 0:02:59.3]} 3. Nc3 {[%clk 0:02:58.8]} 3... Nf6 {[%clk
0:02:58.8]} 4. Nd5 {[%clk 0:02:59]} 4... Bd6 {[%clk 0:02:43.7]} 5. Bc4 {[%clk
0:02:48.1]} 5... Na5 {[%clk 0:02:26.6]} 6. Bd3 {[%clk 0:02:39.2]} 6... Nc6
{[%clk 0:02:22.7]} 7. O-O {[%clk 0:02:36.4]} 7... Be7 {[%clk 0:02:21.5]} 8. Re1
{[%clk 0:02:24.6]} 8... d6 {[%clk 0:02:20.2]} 9. Bc4 {[%clk 0:02:04.4]} 9... O-O
{[%clk 0:02:11.9]} 10. a4 {[%clk 0:01:51.3]} 10... Bg4 {[%clk 0:02:10.6]} 11. c3
{[%clk 0:01:50.4]} 11... Kh8 {[%clk 0:02:07.1]} 12. h3 {[%clk 0:01:34.8]} 12...
Bh5 {[%clk 0:02:06.3]} 13. a5 {[%clk 0:01:34.7]} 13... a6 {[%clk 0:02:05.8]} 14.
d3 {[%clk 0:01:19.7]} 14... Qd7 {[%clk 0:02:01.8]} 15. Nxf6 {[%clk 0:00:57.8]}
15... Bxf6 {[%clk 0:02:01.4]} 16. g4 {[%clk 0:00:57.2]} 16... Bg6 {[%clk
0:01:59.7]} 17. b4 {[%clk 0:00:47.4]} 17... Nd8 {[%clk 0:01:57.2]} 18. d4 {[%clk
0:00:27.1]} 18... Qe8 {[%clk 0:01:32]} 19. dxe5 {[%clk 0:00:23.5]} 19... Bxe5
{[%clk 0:01:26.8]} 20. Nxe5 {[%clk 0:00:21.9]} 20... dxe5 {[%clk 0:01:25.9]} 21.
Be3 {[%clk 0:00:20.9]} 21... Ne6 {[%clk 0:01:25]} 22. f3 {[%clk 0:00:15.7]}
22... f6 {[%clk 0:01:23.4]} 23. Qb3 {[%clk 0:00:14.8]} 23... Bf7 {[%clk
0:01:19.6]} 24. Rad1 {[%clk 0:00:15]} 24... Rd8 {[%clk 0:01:05.3]} 25. Rxd8
{[%clk 0:00:15]} 25... Nxd8 {[%clk 0:01:05]} 26. Rd1 {[%clk 0:00:14.3]} 26...
Bxc4 {[%clk 0:00:58]} 27. Qxc4 {[%clk 0:00:15.2]} 27... Ne6 {[%clk 0:00:57]} 28.
Kf2 {[%clk 0:00:14.7]} 28... h6 {[%clk 0:00:51.1]} 29. Rd5 {[%clk 0:00:10.3]}
29... Qa4 {[%clk 0:00:35.7]} 30. Rd2 {[%clk 0:00:10.5]} 30... Re8 {[%clk
0:00:34.7]} 31. h4 {[%clk 0:00:11]} 31... Qa1 {[%clk 0:00:28.2]} 32. Kg2 {[%clk
0:00:03.3]} 32... Qe1 {[%clk 0:00:28.4]} 33. Qe2 {[%clk 0:00:03.1]} 33... Qxh4
{[%clk 0:00:27.9]} 34. Qf2 {[%clk 0:00:02]} 34... Qxf2+ {[%clk 0:00:26.5]} 35.
Kxf2 {[%clk 0:00:02.9]} 35... Rd8 {[%clk 0:00:26.7]} 36. Rxd8+ {[%clk 0:00:02]}
36... Nxd8 {[%clk 0:00:27.6]} 37. Ke2 {[%clk 0:00:02.4]} 37... Kh7 {[%clk
0:00:24.1]} 38. Kd3 {[%clk 0:00:02.5]} 38... c6 {[%clk 0:00:24.2]} 39. c4 {[%clk
0:00:02.9]} 39... Ne6 {[%clk 0:00:21.7]} 40. Kc3 {[%clk 0:00:02.7]} 40... g6
{[%clk 0:00:21.6]} 41. b5 {[%clk 0:00:03.2]} 41... h5 {[%clk 0:00:18.1]} 42.
bxa6 {[%clk 0:00:02.8]} 42... bxa6 {[%clk 0:00:17.9]} 43. gxh5 {[%clk
0:00:03.3]} 43... gxh5 {[%clk 0:00:18.5]} 44. Kd3 {[%clk 0:00:03.9]} 44... Kg6
{[%clk 0:00:13.1]} 45. Ke2 {[%clk 0:00:04.2]} 45... h4 {[%clk 0:00:13.1]} 46.
Kf2 {[%clk 0:00:04.7]} 46... Kh5 {[%clk 0:00:12.5]} 47. Bd2 {[%clk 0:00:05]}
47... Nd4 {[%clk 0:00:10.7]} 48. Bb4 {[%clk 0:00:04.8]} 48... Nb3 {[%clk
0:00:07.8]} 49. Be7 {[%clk 0:00:03.7]} 49... Kg5 {[%clk 0:00:08]} 50. Bd8 {[%clk
0:00:03.7]} 50... Nd2 {[%clk 0:00:07.3]} 51. c5 {[%clk 0:00:03.8]} 51... Nb3
{[%clk 0:00:05.9]} 52. Bb6 {[%clk 0:00:04.1]} 52... Nd4 {[%clk 0:00:06.4]} 53.
Bd8 {[%clk 0:00:03.6]} 53... Ne6 {[%clk 0:00:07]} 54. Be7 {[%clk 0:00:03.2]}
54... Nf4 {[%clk 0:00:07.5]} 55. Bd8 {[%clk 0:00:02.9]} 55... Kg6 {[%clk
0:00:07.9]} 56. Be7 {[%clk 0:00:03.1]} 56... f5 {[%clk 0:00:08.2]} 57. exf5+
{[%clk 0:00:02.8]} 57... Kxf5 {[%clk 0:00:08.4]} 58. Bxh4 {[%clk 0:00:03.5]}
58... Nd3+ {[%clk 0:00:09.1]} 59. Ke3 {[%clk 0:00:03.5]} 59... Nxc5 {[%clk
0:00:09.7]} 60. Bd8 {[%clk 0:00:03.8]} 60... Nb7 {[%clk 0:00:09.9]} 61. Bc7
{[%clk 0:00:03.8]} 61... Nd6 {[%clk 0:00:10.4]} 62. Bxd6 {[%clk 0:00:04.2]} 1-0